fUST/lending_fUST_20250725
["ID","MTS","AMOUNT","RATE_DAILY","PERIOD"]
[374662775,1753404641718,-460.0,0.00017999,2]
[374662777,1753404641727,-500.0,0.00017999,2]
[374662779,1753404641737,-560.63,0.00017999,2]
[374662781,1753404641747,-628.41,0.00017999,2]
[374662783,1753404641756,-558.25,0.00017999,2]
[374662785,1753404641765,-460.0,0.00017999,2]
[374662787,1753404641776,-460.0,0.00017999,2]
[374662789,1753404641787,-460.0,0.00017999,2]
[374662791,1753404641797,-460.0,0.00017999,2]
[374662793,1753404641806,-1376.25,0.00017999,2]
[374662795,1753404641816,-583.61512947,0.00017999,2]
[374662797,1753404641826,-1187.67,0.00017999,2]
[374662799,1753404641835,-460.0,0.00017999,2]
[374662801,1753404641844,-460.0,0.00017999,2]
[374662803,1753404641854,-730.77,0.00017999,2]
[374662805,1753404641864,-460.0,0.00017999,2]
[374662807,1753404641874,-282.41452481,0.00017999,2]
[374662809,1753404641884,-460.0,0.00017999,2]
[374662811,1753404641893,-460.0,0.00017999,2]
[374662813,1753404641903,-460.0,0.00017999,2]
[374662815,1753404641914,-460.0,0.00017999,2]
[374662817,1753404641924,-460.0,0.00017999,2]
[374662819,1753404641933,-460.0,0.00017999,2]
[374662821,1753404641943,-6651.58116728,0.00018,2]
[374662823,1753404641953,-4116.46381659,0.00018016,2]
[374662825,1753404641963,-4838.6517861,0.00018038,2]
[374662827,1753404641973,-251.87,0.00018106,3]
[374662829,1753404641983,-160.0,0.00018115,2]
[374662831,1753404641993,-460.0,0.00018116,2]
[374662833,1753404642003,-460.0,0.00018116,2]
[374662835,1753404642012,-460.0,0.00018116,2]
[374662837,1753404642024,-460.0,0.00018116,2]
[374662839,1753404642034,-460.0,0.00018116,2]
[374662841,1753404642045,-460.0,0.00018116,2]
[374662843,1753404642056,-460.5025434,0.00018116,2]
[374662845,1753404642066,-460.0,0.00018116,2]
[374662847,1753404642076,-506.65651959,0.00018116,2]
[374662849,1753404642086,-460.0,0.00018116,2]
[374662851,1753404642096,-460.0,0.00018116,2]
[374662853,1753404642106,-460.0,0.00018116,2]
[374662855,1753404642116,-460.0,0.00018116,2]
[374662857,1753404642126,-571.72319245,0.00018116,2]
[374662859,1753404642138,-460.0,0.00018116,2]
[374662861,1753404642148,-460.0,0.00018116,2]
[374662863,1753404642158,-700.29,0.00018116,2]
[374662865,1753404642168,-1384.34,0.00018116,2]
[374662867,1753404642177,-1404.51,0.00018116,2]
[374662869,1753404642187,-1109.55,0.00018116,2]
[374662871,1753404642197,-465.49,0.00018116,2]
[374662873,1753404642207,-530.19,0.00018116,2]
[374662875,1753404642216,-460.0,0.00018116,2]
[374662877,1753404642226,-387.0781505,0.00018116,2]
[374662879,1753404642235,-1001.67,0.00018116,2]
[374662881,1753404642245,-853.47,0.00018116,2]
[374662883,1753404642254,-540.57,0.00018116,2]
[374662885,1753404642263,-1280.81,0.00018116,2]
[374662887,1753404642274,-5769.14,0.00018116,2]
[374662889,1753404642283,-1347.45,0.00018116,2]
[374662891,1753404642293,-1208.92223283,0.00018138,2]
[374662893,1753404642302,-460.0,0.0001814,2]
[374662895,1753404642311,-460.0,0.0001814,2]
[374662897,1753404642321,-460.0,0.0001814,2]
[374662899,1753404642331,-460.0,0.0001814,2]
[374662900,1753404642341,-460.0,0.0001814,2]
[374662902,1753404642351,-460.0,0.0001814,2]
[374662904,1753404642360,-460.0,0.0001814,2]
[374662906,1753404642369,-460.0,0.0001814,2]
[374662908,1753404642379,-460.0,0.0001814,2]
[374662910,1753404642388,-460.0,0.0001814,2]
[374662912,1753404642398,-460.0,0.0001814,2]
[374662914,1753404642407,-460.0,0.0001814,2]
[374662916,1753404642417,-462.83048628,0.0001814,2]
[374662918,1753404642426,-460.0,0.0001814,2]
[374662920,1753404642436,-463.54067668,0.0001814,2]
[374662922,1753404642445,-460.0,0.0001814,2]
[374662924,1753404642455,-200.0,0.0001814,10]
[374662926,1753404642464,-200.0,0.0001814,10]
[374662928,1753404642475,-200.0,0.0001814,10]
[374662930,1753404642484,-200.0,0.0001814,10]
[374662932,1753404642493,-200.0,0.0001814,10]
[374662934,1753404642503,-200.0,0.0001814,10]
[374662936,1753404642512,-4838.6517861,0.00018176,2]
[374662938,1753404642521,-460.0,0.00018233,2]
[374662940,1753404642533,-460.0,0.00018233,2]
[374662942,1753404642543,-460.0,0.00018233,2]
[374662944,1753404642552,-460.0,0.00018233,2]
[374662946,1753404642562,-460.0,0.00018233,2]
[374662948,1753404642571,-460.0,0.00018233,2]
[374662950,1753404642581,-460.0,0.00018233,2]
[374662952,1753404642591,-817.21,0.00018233,2]
[374662954,1753404642600,-405.4754075,0.00018233,2]
[374662957,1753404642610,-538.7,0.00018233,2]
[374662958,1753404642620,-725.04,0.00018233,2]
[374662959,1753404642632,-3616.54,0.00018233,2]
[374662960,1753404642642,-460.0,0.00018233,2]
[374662961,1753404642651,-2208.85,0.00018233,2]
[374662963,1753404642660,-515.93,0.00018233,2]
[374662964,1753404642669,-1182.8,0.00018233,2]
[374662965,1753404642678,-268.75351286,0.00018234,2]
[374662966,1753404642687,-2656.18,0.00018234,2]
[374662967,1753404642697,-4422.04,0.00018234,2]
[374662969,1753404642706,-3458.58,0.00018234,2]
[374662970,1753404642715,-460.0,0.00018234,2]
[374662971,1753404642725,-500.0,0.00018235,2]
[374662972,1753404642734,-500.0,0.00018235,2]
[374662973,1753404642743,-460.0,0.00018237,2]
[374662974,1753404642752,-460.0,0.00018237,2]
[374662975,1753404642761,-460.0,0.00018237,2]
[374662976,1753404642770,-460.0,0.00018237,2]
[374662977,1753404642781,-339.57818452,0.00018237,2]
[374662978,1753404642790,-460.0,0.00018237,2]
[374662979,1753404642800,-460.0,0.00018237,2]
[374662980,1753404642809,-460.0,0.00018237,2]
[374662981,1753404642818,-460.0,0.00018237,2]
[374662982,1753404642828,-460.0,0.00018237,2]
[374662983,1753404642837,-460.0,0.00018237,2]
[374662984,1753404642846,-460.0,0.00018237,2]
[374662985,1753404642854,-2293.65,0.00018237,2]
[374662986,1753404642863,-2473.65,0.00018237,2]
[374662987,1753404642873,-460.0,0.00018237,2]
[374662988,1753404642882,-3404.83,0.00018237,2]
[374662989,1753404642892,-460.0,0.00018237,2]
[374662990,1753404642901,-1066.73,0.00018237,2]
[374662991,1753404642910,-460.0,0.00018237,2]
[374662992,1753404642919,-460.0,0.00018238,2]
[374662993,1753404642928,-460.0,0.00018238,2]
[374662994,1753404642939,-460.0,0.00018238,2]
[374662995,1753404642948,-460.0,0.00018238,2]
[374662996,1753404642957,-460.0,0.00018238,2]
[374662997,1753404642966,-460.0,0.00018238,2]
[374662998,1753404642975,-460.0,0.00018238,2]
[374663000,1753404642984,-460.0,0.00018238,2]
[374663001,1753404642994,-460.0,0.00018238,2]
[374663002,1753404643006,-460.0,0.00018238,2]
[374663004,1753404643016,-460.0,0.00018238,2]
[374663006,1753404643028,-276.21926374,0.00018238,2]
[374663008,1753404643037,-460.0,0.00018238,2]
[374663010,1753404643047,-460.0,0.00018238,2]
[374663012,1753404643056,-502.46886879,0.00018238,2]
[374663014,1753404643066,-460.0,0.00018238,2]
[374663016,1753404643076,-460.0,0.00018238,2]
[374663018,1753404643085,-599.39692175,0.00018238,2]
[374663020,1753404643095,-460.0,0.00018238,2]
[374663022,1753404643105,-460.0,0.00018238,2]
[374663024,1753404643114,-460.0,0.00018238,2]
[374663026,1753404643124,-460.0,0.00018238,2]
[374663028,1753404643134,-460.0,0.00018238,2]
[374663030,1753404643143,-460.0,0.00018238,2]
[374663032,1753404643153,-152.43128864,0.00018238,2]
[374663034,1753404643163,-460.0,0.00018238,2]
[374663036,1753404643172,-460.0,0.00018238,2]
[374663038,1753404643182,-460.0,0.00018238,2]
[374663040,1753404643191,-460.0,0.00018238,2]
[374663042,1753404643201,-460.0,0.00018238,2]
[374663044,1753404643210,-461.46562198,0.00018238,2]
[374663046,1753404643220,-460.0,0.00018238,2]
[374663048,1753404643230,-460.0,0.00018238,2]
[374663050,1753404643239,-460.0,0.00018238,2]
[374663052,1753404643248,-460.0,0.00018238,2]
[374663054,1753404643258,-1039.36,0.00018238,2]
[374663056,1753404643268,-619.46,0.00018238,2]
[374663058,1753404643279,-460.0,0.00018238,2]
[374663060,1753404643289,-460.0,0.00018238,2]
[374663062,1753404643298,-460.0,0.00018238,2]
[374663064,1753404643308,-858.12,0.00018238,2]
[374663066,1753404643317,-460.0,0.00018238,2]
[374663068,1753404643326,-460.0,0.00018238,2]
[374663070,1753404643335,-460.0,0.00018238,2]
[374663072,1753404643345,-460.0,0.00018238,2]
[374663074,1753404643354,-460.0,0.00018238,2]
[374663076,1753404643363,-460.0,0.00018238,2]
[374663078,1753404643372,-460.0,0.00018238,2]
[374663080,1753404643382,-500.0,0.00018238,2]
[374663082,1753404643391,-460.0,0.00018238,2]
[374663084,1753404643400,-460.0,0.00018238,2]
[374663086,1753404643410,-460.0,0.00018238,2]
[374663088,1753404643419,-478.57,0.00018238,2]
[374663090,1753404643429,-239.21524657,0.00018238,2]
[374663092,1753404643439,-1582.69,0.00018238,2]
[374663094,1753404643449,-636.36,0.00018238,2]
[374663096,1753404643458,-681.19,0.00018238,2]
[374663097,1753404643468,-460.0,0.00018238,2]
[374663100,1753404643481,-460.0,0.00018238,2]
[374663101,1753404643490,-826.24,0.00018238,2]
[374663103,1753404643499,-490.98,0.00018238,2]
[374663105,1753404643509,-707.1,0.00018238,2]
[374663107,1753404643519,-460.0,0.00018238,2]
[374663109,1753404643530,-460.0,0.00018238,2]
[374663111,1753404643540,-460.0,0.00018238,2]
[374663113,1753404643550,-644.95,0.00018238,2]
[374663116,1753404643559,-510.83,0.00018238,2]
[374663119,1753404643569,-500.0,0.00018239,2]
[374663121,1753404643579,-500.0,0.0001824,2]
[374663123,1753404643590,-500.0,0.0001824,2]
[374663125,1753404643600,-500.0,0.0001824,2]
[374663128,1753404643610,-517.67,0.00018241,2]
[374663130,1753404643621,-460.0,0.00018241,2]
[374663132,1753404643634,-460.0,0.00018241,2]
[374663134,1753404643645,-460.0,0.00018241,2]
[374663136,1753404643654,-435.5486287,0.00018241,2]
[374663138,1753404643664,-460.0,0.00018241,2]
[374663140,1753404643676,-460.0,0.00018241,2]
[374663141,1753404643697,-312.12063131,0.00018241,2]
[374663143,1753404643715,-460.0,0.00018241,2]
[374663146,1753404643726,-461.23037477,0.00018241,2]
[374663147,1753404643736,-460.0,0.00018241,2]
[374663150,1753404643750,-599.0204205,0.00018241,2]
[374663165,1753404643886,-460.0,0.00018241,2]
[374663168,1753404643896,-653.07,0.00018241,2]
[374663170,1753404643906,-460.0,0.00018241,2]
[374663172,1753404643915,-460.0,0.00018241,2]
[374663173,1753404643925,-460.0,0.00018241,2]
[374663175,1753404643934,-460.0,0.00018241,2]
[374663178,1753404643944,-617.41,0.00018241,2]
[374663180,1753404643954,-460.0,0.00018241,2]
[374663181,1753404643963,-460.0,0.00018241,2]
[374663183,1753404643973,-460.0,0.00018241,2]
[374663185,1753404643983,-741.91,0.00018241,2]
[374663187,1753404643992,-460.0,0.00018241,2]
[374663189,1753404644001,-460.0,0.00018241,2]
[374663191,1753404644011,-460.0,0.00018241,2]
[374663193,1753404644021,-460.0,0.00018241,2]
[374663195,1753404644033,-460.0,0.00018241,2]
[374663197,1753404644043,-460.0,0.00018241,2]
[374663200,1753404644053,-460.0,0.00018241,2]
[374663202,1753404644063,-460.0,0.00018241,2]
[374663204,1753404644072,-460.0,0.00018241,2]
[374663206,1753404644082,-460.0,0.00018241,2]
[374663208,1753404644091,-460.0,0.00018241,2]
[374663210,1753404644101,-460.0,0.00018241,2]
[374663211,1753404644111,-460.0,0.00018241,2]
[374663213,1753404644121,-460.0,0.00018241,2]
[374663215,1753404644130,-460.0,0.00018241,2]
[374663217,1753404644140,-460.0,0.00018241,2]
[374663219,1753404644150,-460.0,0.00018241,2]
[374663221,1753404644159,-460.0,0.00018241,2]
[374663223,1753404644169,-500.0,0.00018241,2]
[374663226,1753404644181,-500.0,0.00018241,2]
[374663228,1753404644190,-500.0,0.00018241,2]
[374663230,1753404644200,-420.0,0.00018241,2]
[374663231,1753404644210,-460.0,0.00018241,2]
[374663233,1753404644220,-460.0,0.00018241,2]
[374663235,1753404644229,-460.0,0.00018241,2]
[374663237,1753404644239,-460.0,0.00018241,2]
[374663239,1753404644249,-292.17819883,0.00018241,2]
[374663242,1753404644259,-460.0,0.00018241,2]
[374663245,1753404644269,-460.0,0.00018241,2]
[374663246,1753404644285,-460.0,0.00018241,2]
[374663248,1753404644295,-460.0,0.00018241,2]
[374663250,1753404644305,-460.0,0.00018241,2]
[374663252,1753404644315,-535.39,0.00018241,2]
[374663254,1753404644324,-460.0,0.00018241,2]
[374663256,1753404644334,-460.0,0.00018241,2]
[374663259,1753404644343,-460.0,0.00018241,2]
[374663261,1753404644353,-460.0,0.00018241,2]
[374663262,1753404644362,-906.7,0.00018241,2]
[374663265,1753404644372,-460.0,0.00018241,2]
[374663267,1753404644382,-460.0,0.00018241,2]
[374663269,1753404644392,-460.0,0.00018241,2]
[374663270,1753404644401,-460.0,0.00018241,2]
[374663273,1753404644411,-460.0,0.00018241,2]
[374663274,1753404644420,-464.71111948,0.00018241,2]
[374663276,1753404644430,-500.0,0.00018241,2]
[374663278,1753404644439,-460.0,0.00018241,2]
[374663280,1753404644453,-460.0,0.00018241,2]
[374663282,1753404644472,-460.0,0.00018241,2]
[374663284,1753404644487,-460.0,0.00018241,2]
[374663286,1753404644498,-460.0,0.00018241,2]
[374663288,1753404644509,-460.0,0.00018241,2]
[374663290,1753404644519,-460.0,0.00018241,2]
[374663292,1753404644533,-460.0,0.00018241,2]
[374663294,1753404644543,-460.0,0.00018241,2]
[374663296,1753404644552,-460.0,0.00018241,2]
[374663298,1753404644562,-460.0,0.00018241,2]
[374663301,1753404644571,-460.0,0.00018241,2]
[374663302,1753404644581,-460.0,0.00018241,2]
[374663304,1753404644590,-460.0,0.00018241,2]
[374663306,1753404644600,-460.0,0.00018241,2]
[374663307,1753404644609,-460.0,0.00018241,2]
[374663308,1753404644619,-957.35,0.00018241,2]
[374663309,1753404644633,-500.0,0.00018242,2]
[374663310,1753404644643,-500.0,0.00018242,2]
[374663311,1753404644652,-460.0,0.00018243,2]
[374663312,1753404644661,-424.02858638,0.00018243,2]
[374663313,1753404644671,-460.0,0.00018243,2]
[374663314,1753404644680,-460.0,0.00018243,2]
[374663315,1753404644690,-460.0,0.00018243,2]
[374663316,1753404644699,-460.0,0.00018243,2]
[374663317,1753404644709,-460.0,0.00018243,2]
[374663318,1753404644720,-527.08,0.00018243,2]
[374663319,1753404644730,-460.0,0.00018243,2]
[374663320,1753404644739,-460.0,0.00018243,2]
[374663321,1753404644748,-460.0,0.00018243,2]
[374663322,1753404644758,-460.0,0.00018243,2]
[374663323,1753404644767,-460.0,0.00018243,2]
[374663324,1753404644778,-460.0,0.00018243,2]
[374663325,1753404644788,-460.0,0.00018243,2]
[374663326,1753404644798,-460.0,0.00018243,2]
[374663327,1753404644807,-460.0,0.00018243,2]
[374663328,1753404644817,-460.0,0.00018243,2]
[374663329,1753404644826,-460.0,0.00018243,2]
[374663330,1753404644836,-460.0,0.00018243,2]
[374663331,1753404644846,-460.0,0.00018243,2]
[374663332,1753404644855,-460.0,0.00018243,2]
[374663333,1753404644865,-460.0,0.00018243,2]
[374663334,1753404644875,-460.0,0.00018243,2]
[374663335,1753404644884,-641.51,0.00018243,2]
[374663336,1753404644894,-460.0,0.00018243,2]
[374663337,1753404644903,-460.0,0.00018243,2]
[374663338,1753404644913,-460.0,0.00018243,2]
[374663339,1753404644923,-460.0,0.00018263,2]
[374663340,1753404644933,-460.0,0.00018263,2]
[374663341,1753404644942,-460.0,0.00018263,2]
[374663342,1753404644952,-460.0,0.00018263,2]
[374663343,1753404644962,-461.10079098,0.00018263,2]
[374663344,1753404644972,-460.0,0.00018263,2]
[374663345,1753404644981,-280.54419779,0.00018263,2]
[374663346,1753404644991,-460.0,0.00018263,2]
[374663347,1753404645001,-460.0,0.00018263,2]
[374663348,1753404645011,-460.0,0.00018263,2]
[374663349,1753404645020,-460.0,0.00018263,2]
[374663350,1753404645032,-460.0,0.00018263,2]
[374663351,1753404645042,-682.72,0.00018263,2]
[374663352,1753404645051,-879.04,0.00018263,2]
[374663353,1753404645061,-341.69598515,0.00018263,2]
[374663354,1753404645071,-390.11735813,0.00018263,2]
[374663355,1753404645081,-779.49,0.00018263,2]
[374663356,1753404645091,-460.0,0.00018263,2]
[374663357,1753404645101,-500.0,0.00018264,2]
[374663358,1753404645110,-460.0,0.00018264,2]
[374663359,1753404645120,-460.0,0.00018264,2]
[374663360,1753404645129,-460.0,0.00018264,2]
[374663361,1753404645139,-460.0,0.00018264,2]
[374663362,1753404645149,-460.0,0.00018264,2]
[374663363,1753404645159,-460.0,0.00018264,2]
[374663364,1753404645169,-460.0,0.00018264,2]
[374663365,1753404645179,-460.0,0.00018264,2]
[374663366,1753404645188,-460.0,0.00018264,2]
[374663367,1753404645199,-388.63557169,0.00018264,2]
[374663368,1753404645208,-501.4109676,0.00018264,2]
[374663369,1753404645218,-460.0,0.00018264,2]
[374663370,1753404645228,-472.42270452,0.00018264,2]
[374663371,1753404645238,-460.0,0.00018264,2]
[374663372,1753404645247,-460.0,0.00018264,2]
[374663373,1753404645257,-1883.51,0.00018264,2]
[374663374,1753404645267,-7566.41,0.00018264,2]
[374663375,1753404645279,-460.0,0.00018264,2]
[374663376,1753404645289,-460.0,0.00018264,2]
[374663377,1753404645298,-463.01333329,0.00018264,2]
[374663378,1753404645308,-438.6811915,0.00018264,2]
[374663379,1753404645318,-460.0,0.00018264,2]
[374663380,1753404645328,-460.0,0.00018264,2]
[374663381,1753404645338,-699.86,0.00018264,2]
[374663382,1753404645347,-460.0,0.00018264,2]
[374663383,1753404645357,-460.0,0.00018264,2]
[374663384,1753404645366,-460.0,0.00018264,2]
[374663385,1753404645376,-1060.78,0.00018264,2]
[374663386,1753404645386,-460.0,0.00018264,2]
[374663387,1753404645395,-460.0,0.00018264,2]
[374663388,1753404645405,-460.0,0.00018264,2]
[374663389,1753404645415,-460.0,0.00018264,2]
[374663390,1753404645424,-842.19,0.00018264,2]
[374663391,1753404645433,-3520.83,0.00018264,2]
[374663392,1753404645443,-2764.23,0.00018264,2]
[374663393,1753404645453,-928.75,0.00018264,2]
[374663394,1753404645463,-460.0,0.00018264,2]
[374663395,1753404645472,-460.0,0.00018264,2]
[374663397,1753404645481,-2372.12,0.00018264,2]
[374663399,1753404645491,-460.0,0.00018264,2]
[374663401,1753404645500,-460.0,0.00018264,2]
[374663403,1753404645510,-882.42,0.00018264,2]
[374663405,1753404645519,-1124.3,0.00018264,2]
[374663407,1753404645530,-460.0,0.00018264,2]
[374663409,1753404645540,-460.0,0.00018264,2]
[374663411,1753404645549,-460.0,0.00018264,2]
[374663413,1753404645559,-475.31571928,0.00018264,2]
[374663415,1753404645569,-339.20012688,0.0001827,2]
[374663417,1753404645578,-460.0,0.0001827,2]
[374663419,1753404645587,-460.0,0.0001827,2]
[374663421,1753404645596,-466.8593543,0.0001827,2]
[374663424,1753404645606,-460.0,0.0001827,2]
[374663426,1753404645616,-460.0,0.0001827,2]
[374663428,1753404645627,-460.0,0.0001827,2]
[374663430,1753404645637,-460.0,0.0001827,2]
[374663432,1753404645646,-460.0,0.0001827,2]
[374663434,1753404645657,-460.83588759,0.0001827,2]
[374663436,1753404645666,-460.0,0.0001827,2]
[374663438,1753404645676,-460.0,0.0001827,2]
[374663440,1753404645689,-391.25021225,0.0001827,2]
[374663442,1753404645698,-460.0,0.0001827,2]
[374663443,1753404645708,-460.0,0.0001827,2]
[374663444,1753404645718,-460.0,0.0001827,2]
[374663445,1753404645727,-460.0,0.0001827,2]
[374663446,1753404645737,-460.0,0.0001827,2]
[374663447,1753404645747,-485.64,0.0001827,2]
[374663448,1753404645757,-460.0,0.0001827,2]
[374663449,1753404645766,-460.0,0.0001827,2]
[374663450,1753404645777,-761.78,0.0001827,2]
[374663451,1753404645787,-460.0,0.0001827,2]
[374663452,1753404645796,-622.1,0.0001827,2]
[374663453,1753404645806,-442.07952192,0.0001827,2]
[374663454,1753404645815,-460.0,0.0001827,2]
[374663455,1753404645825,-460.0,0.0001827,2]
[374663456,1753404645834,-460.0,0.0001827,2]
[374663457,1753404645844,-507.79412014,0.0001827,2]
[374663458,1753404645853,-839.58,0.0001827,2]
[374663460,1753404645863,-678.17,0.0001827,2]
[374663462,1753404645874,-460.0,0.0001827,2]
[374663464,1753404645883,-460.0,0.0001827,2]
[374663466,1753404645893,-460.0,0.0001827,2]
[374663468,1753404645903,-381.14596992,0.0001827,2]
[374663469,1753404645913,-460.0,0.0001827,2]
[374663470,1753404645922,-460.0,0.0001827,2]
[374663471,1753404645932,-576.16,0.0001827,2]
[374663472,1753404645941,-765.08,0.0001827,2]
[374663473,1753404645951,-1116.47,0.0001827,2]
[374663474,1753404645961,-553.1398677,0.0001827,2]
[374663475,1753404645971,-784.01,0.0001827,2]
[374663476,1753404645980,-578.8,0.0001827,2]
[374663477,1753404645990,-460.0,0.0001827,2]
[374663478,1753404646000,-460.0,0.0001827,2]
[374663479,1753404646010,-460.0,0.0001827,2]
[374663480,1753404646020,-460.0,0.0001827,2]
[374663481,1753404646030,-460.0,0.0001827,2]
[374663482,1753404646040,-460.0,0.0001827,2]
[374663483,1753404646050,-460.0,0.0001827,2]
[374663484,1753404646060,-463.91186018,0.0001827,2]
[374663485,1753404646070,-460.0,0.0001827,2]
[374663486,1753404646080,-460.0,0.0001827,2]
[374663487,1753404646089,-793.28,0.00018271,2]
[374663488,1753404646098,-760.23,0.00018271,2]
[374663489,1753404646108,-753.36408695,0.00018271,2]
[374663490,1753404646119,-460.0,0.00018271,2]
[374663491,1753404646129,-519.67094847,0.00018271,2]
[374663492,1753404646139,-397.201254,0.00018271,2]
[374663493,1753404646149,-460.0,0.00018271,2]
[374663494,1753404646158,-460.0,0.00018271,2]
[374663495,1753404646168,-460.0,0.00018271,2]
[374663496,1753404646177,-460.0,0.00018271,2]
[374663497,1753404646187,-463.72916045,0.00018271,2]
[374663498,1753404646196,-460.0,0.00018271,2]
[374663499,1753404646206,-460.0,0.00018271,2]
[374663500,1753404646215,-967.47,0.00018271,2]
[374663501,1753404646224,-1315.09,0.00018271,2]
[374663502,1753404646234,-460.0,0.00018271,2]
[374663503,1753404646243,-460.0,0.00018271,2]
[374663504,1753404646253,-460.0,0.00018271,2]
[374663505,1753404646262,-1001.06,0.00018271,2]
[374663506,1753404646272,-1087.93,0.00018271,2]
[374663507,1753404646283,-1406.67,0.00018271,2]
[374663508,1753404646292,-460.0,0.00018271,2]
[374663509,1753404646302,-460.0,0.00018271,2]
[374663510,1753404646311,-460.0,0.00018271,2]
[374663511,1753404646321,-442.8750794,0.00018273,2]
[374663512,1753404646330,-500.0,0.00018273,2]
[374663513,1753404646340,-500.0,0.00018273,2]
[374663514,1753404646349,-326.6286965,0.00018273,2]
[374663515,1753404646358,-500.0,0.00018273,2]
[374663516,1753404646368,-500.0,0.00018273,2]
[374663517,1753404646377,-500.0,0.00018273,2]
[374663518,1753404646387,-386.38979536,0.00018273,2]
[374663519,1753404646396,-500.0,0.00018273,2]
[374663520,1753404646405,-500.0,0.00018273,2]
[374663521,1753404646415,-500.0,0.00018273,2]
[374663522,1753404646425,-161.15665472,0.00018273,2]
[374663523,1753404646435,-500.0,0.00018273,2]
[374663524,1753404646445,-500.0,0.00018273,2]
[374663525,1753404646455,-500.0,0.00018273,2]
[374663526,1753404646465,-626.34013924,0.00018273,2]
[374663527,1753404646476,-500.49828338,0.00018273,2]
[374663528,1753404646486,-233.396538,0.00018273,2]
[374663529,1753404646495,-501.70385303,0.00018273,2]
[374663530,1753404646505,-500.0,0.00018273,2]
[374663531,1753404646515,-500.0,0.00018273,2]
[374663532,1753404646524,-212.56494168,0.00018273,2]
[374663533,1753404646534,-502.59406956,0.00018273,2]
[374663534,1753404646543,-500.0,0.00018273,2]
[374663535,1753404646553,-500.89047379,0.00018273,2]
[374663536,1753404646563,-179.16878495,0.00018273,2]
[374663537,1753404646573,-500.0,0.00018273,2]
[374663538,1753404646583,-500.0,0.00018273,2]
[374663539,1753404646593,-500.0,0.00018273,2]
[374663540,1753404646603,-500.0,0.00018273,2]
[374663541,1753404646613,-500.0,0.00018273,2]
[374663542,1753404646624,-512.65705704,0.00018273,2]
[374663543,1753404646636,-500.0,0.00018273,2]
[374663544,1753404646646,-500.0,0.00018273,2]
[374663545,1753404646655,-500.0,0.00018273,2]
[374663546,1753404646665,-500.0,0.00018273,2]
[374663547,1753404646675,-500.0,0.00018273,2]
[374663548,1753404646684,-500.0,0.00018273,2]
[374663549,1753404646694,-500.0,0.00018273,2]
[374663550,1753404646704,-500.0,0.00018273,2]
[374663551,1753404646714,-500.71619421,0.00018273,2]
[374663552,1753404646723,-500.0,0.00018273,2]
[374663553,1753404646733,-500.0,0.00018273,2]
[374663554,1753404646742,-500.0,0.00018273,2]
[374663555,1753404646752,-500.0,0.00018273,2]
[374663556,1753404646886,-371.51733864,0.00018273,2]
[374663557,1753404646896,-162.95155545,0.00018273,2]